lending/lending_fUSD_20241229
["ID","MTS","AMOUNT","RATE_DAILY","PERIOD"]
[346995385,1735458646320,-970.41,0.00012765,2]
[346995386,1735458646329,-500.0,0.00012765,2]
[346995387,1735458646338,-500.0,0.00012765,2]
[346995388,1735458646348,-500.0,0.00012765,2]
[346995389,1735458646360,-805.76,0.00012765,2]
[346995390,1735458646369,-500.0,0.00012765,2]
[346995391,1735458646379,-500.0,0.00012765,2]
[346995392,1735458646388,-500.0,0.00012765,2]
[346995393,1735458646400,-500.0,0.00012765,2]
[346995394,1735458646409,-500.0,0.00012765,2]
[346995395,1735458646418,-500.0,0.00012765,2]
[346995396,1735458646427,-500.0,0.00012765,2]
[346995397,1735458646438,-500.0,0.00012765,2]
[346995398,1735458646447,-594.78,0.00012765,2]
[346995399,1735458646457,-500.0,0.00012765,2]
[346995400,1735458646466,-500.0,0.00012765,2]
[346995401,1735458646475,-500.0,0.00012765,2]
[346995402,1735458646485,-500.0,0.00012765,2]
[346995403,1735458646494,-500.0,0.00012765,2]
[346995404,1735458646503,-911.11,0.00012765,2]
[346995405,1735458646513,-504.34212832,0.00012765,2]
[346995406,1735458646523,-500.0,0.00012765,2]
[346995407,1735458646532,-559.21,0.00012765,2]
[346995408,1735458646542,-500.0,0.00012765,2]
[346995409,1735458646551,-500.0,0.00012765,2]
[346995411,1735458646560,-649.03,0.00012765,2]
[346995412,1735458646569,-500.0,0.00012765,2]
[346995413,1735458646579,-500.0,0.00012765,2]
[346995414,1735458646588,-500.0,0.00012765,2]
[346995415,1735458646597,-500.0,0.00012765,2]
[346995416,1735458646606,-500.0,0.00012765,2]
[346995417,1735458646616,-500.0,0.00012765,2]
[346995418,1735458646625,-500.0,0.00012765,2]
[346995419,1735458646634,-500.0,0.00012765,2]
[346995420,1735458646643,-500.0,0.00012765,2]
[346995421,1735458646653,-500.0,0.00012765,2]
[346995422,1735458646663,-500.0,0.00012765,2]
[346995423,1735458646673,-500.0,0.00012765,2]
[346995424,1735458646683,-500.0,0.00012765,2]
[346995425,1735458646692,-829.91,0.00012765,2]
[346995426,1735458646701,-500.0,0.00012765,2]
[346995427,1735458646710,-500.0,0.00012765,2]
[346995428,1735458646719,-500.0,0.00012765,2]
[346995429,1735458646728,-500.0,0.00012765,2]
[346995430,1735458646738,-500.0,0.00012765,2]
[346995431,1735458646747,-500.0,0.00012765,2]
[346995432,1735458646757,-500.0,0.00012765,2]
[346995433,1735458646767,-500.0,0.00012765,2]
[346995434,1735458646776,-500.0,0.00012765,2]
[346995435,1735458646785,-500.0,0.00012765,2]
[346995436,1735458646795,-500.0,0.00012765,2]
[346995437,1735458646804,-500.0,0.00012765,2]
[346995438,1735458646813,-411.24447311,0.00012765,2]
[346995439,1735458646822,-500.0,0.00012765,2]
[346995440,1735458646832,-500.0,0.00012765,2]
[346995441,1735458646841,-500.0,0.00012765,2]
[346995442,1735458646850,-500.0,0.00012765,2]
[346995443,1735458646859,-500.0,0.00012765,2]
[346995444,1735458646869,-500.0,0.00012765,2]
[346995445,1735458646878,-500.0,0.00012765,2]
[346995446,1735458646887,-915.43,0.00012765,2]
[346995447,1735458646896,-500.0,0.00012765,2]
[346995448,1735458646906,-500.0,0.00012765,2]
[346995449,1735458646915,-500.0,0.00012765,2]
[346995450,1735458646924,-500.0,0.00012765,2]
[346995451,1735458646933,-500.0,0.00012765,2]
[346995452,1735458646943,-500.0,0.00012765,2]
[346995453,1735458646952,-500.0,0.00012765,2]
[346995454,1735458646961,-648.7,0.00012765,2]
[346995455,1735458646970,-500.0,0.00012765,2]
[346995456,1735458646980,-500.0,0.00012765,2]
[346995457,1735458646989,-500.0,0.00012765,2]
[346995458,1735458646999,-500.0,0.00012765,2]
[346995459,1735458647008,-500.0,0.00012765,2]
[346995460,1735458647017,-500.0,0.00012765,2]
[346995461,1735458647027,-500.0,0.00012765,2]
[346995462,1735458647036,-151.76575419,0.00012765,2]
[346995463,1735458647045,-781.69,0.00012765,2]
[346995464,1735458647054,-500.0,0.00012765,2]
[346995465,1735458647063,-942.63,0.00012765,2]
[346995466,1735458647072,-500.0,0.00012765,2]
[346995467,1735458647081,-1223.76,0.00012765,2]
[346995468,1735458647091,-500.0,0.00012765,2]
[346995469,1735458647100,-500.0,0.00012765,2]
[346995470,1735458647110,-513.43,0.00012765,2]
[346995471,1735458647120,-500.0,0.00012765,2]
[346995472,1735458647128,-2180.83488791,0.00012765,2]
[346995473,1735458647143,-1180.33511209,0.00012765,2]
[346995474,1735458647153,-500.0,0.00012765,2]
[346995475,1735458647163,-500.0,0.00012765,2]
[346995476,1735458647172,-500.0,0.00012765,2]
[346995477,1735458647182,-500.0,0.00012765,2]
[346995478,1735458647191,-500.0,0.00012765,2]
[346995479,1735458647200,-500.0,0.00012765,2]
[346995480,1735458647210,-500.0,0.00012765,2]
[346995481,1735458647219,-96.29788791,0.00012765,2]
[346995482,1735458647256,-403.70211209,0.00012765,2]
[346995483,1735458647266,-500.0,0.00012765,2]
[346995484,1735458647275,-1648.57,0.00012765,2]
[346995485,1735458647284,-583.91,0.00012765,2]
[346995486,1735458647293,-500.0,0.00012765,2]
[346995487,1735458647302,-713.38,0.00012765,2]
[346995488,1735458647311,-500.0,0.00012765,2]
[346995489,1735458647322,-500.0,0.00012765,2]
[346995490,1735458647331,-500.0,0.00012765,2]
[346995491,1735458647340,-500.0,0.00012765,2]
[346995492,1735458647351,-500.0,0.00012765,2]
[346995493,1735458647360,-3007.92,0.00012765,2]
[346995494,1735458647370,-500.0,0.00012765,2]
[346995495,1735458647379,-4000.17,0.00012765,2]
[346995496,1735458647388,-500.0,0.00012765,2]
[346995497,1735458647397,-500.0,0.00012765,2]
[346995498,1735458647407,-8100.85,0.00012765,2]
[346995499,1735458647416,-500.0,0.00012765,2]
[346995500,1735458647425,-500.0,0.00012765,2]
[346995501,1735458647435,-5174.42,0.00012765,2]
[346995502,1735458647445,-500.0,0.00012765,2]
[346995503,1735458647454,-6659.03,0.00012765,2]
[346995504,1735458647464,-500.0,0.00012765,2]
[346995505,1735458647473,-500.0,0.00012765,2]
[346995506,1735458647483,-500.0,0.00012765,2]
[346995507,1735458647492,-500.0,0.00012765,2]
[346995508,1735458647502,-362.91992651,0.00012765,2]
[346995509,1735458647514,-676.65007349,0.00012765,2]
[346995510,1735458647523,-500.0,0.00012765,2]
[346995511,1735458647533,-500.0,0.00012765,2]
[346995512,1735458647543,-500.0,0.00012765,2]
[346995513,1735458647552,-500.0,0.00012765,2]
[346995514,1735458647563,-500.0,0.00012765,2]
[346995515,1735458647572,-500.0,0.00012765,2]
[346995516,1735458647582,-643.59,0.00012765,2]
[346995517,1735458647591,-2023.79,0.00012765,2]
[346995518,1735458647600,-1030.57,0.00012765,2]
[346995519,1735458647610,-500.0,0.00012765,2]
[346995520,1735458647619,-500.0,0.00012765,2]
[346995521,1735458647629,-932.83,0.00012765,2]
[346995522,1735458647638,-500.0,0.00012765,2]
[346995523,1735458647647,-500.0,0.00012765,2]
[346995524,1735458647656,-567.42,0.00012765,2]
[346995525,1735458647666,-500.0,0.00012765,2]
[346995526,1735458647675,-500.0,0.00012765,2]
[346995527,1735458647684,-500.0,0.00012765,2]
[346995528,1735458647694,-500.0,0.00012765,2]
[346995529,1735458647704,-505.69407078,0.00012765,2]
[346995530,1735458647713,-500.0,0.00012765,2]
[346995531,1735458647722,-500.0,0.00012765,2]
[346995532,1735458647732,-500.0,0.00012765,2]
[346995533,1735458647741,-503.75197354,0.00012765,2]
[346995534,1735458647750,-1194.53,0.00012765,2]
[346995535,1735458647760,-500.0,0.00012765,2]
[346995536,1735458647769,-500.0,0.00012765,2]
[346995537,1735458647778,-500.0,0.00012765,2]
[346995538,1735458647788,-500.0,0.00012765,2]
[346995539,1735458647797,-1292.55337079,0.00012765,2]
[346995540,1735458647823,-55.41662921,0.00012765,2]
[346995541,1735458647832,-500.0,0.00012765,2]
[346995542,1735458647842,-500.0,0.00012765,2]
[346995543,1735458647851,-201.33056657,0.00012765,2]
[346995618,1735458731375,150.0,0.00010311,2]
[346995706,1735458862687,500.0,0.00024688,120]
[346995786,1735459189409,5688.998,0.00024688,120]
[346995787,1735459199346,4766.9987,0.00024688,120]
[346995788,1735459212798,8299.986,0.00024688,120]
[346995789,1735459224390,10889.668,0.00024688,120]
[346995791,1735459237363,2758.8310631,0.00024688,120]
[346995793,1735459449918,3000.0,0.00024696,120]
[346995794,1735459473675,231.81,0.00010137,2]
[346996267,1735459512302,538.56,9.837e-05,2]
[346996323,1735459811454,150.0,0.00010948,2]
[346996324,1735459811620,150.0,0.00010961,2]
[346996325,1735459832115,-150.0,0.00011345,2]
[346996326,1735459832125,-356.33,0.00011735,2]
[346996327,1735459832135,-302.77534744,0.00011747,2]
[346996328,1735459832146,-77.26465256,0.00011747,2]
[346996329,1735459832155,-374.73,0.00011747,2]
[346996330,1735459832165,-375.19,0.00011747,2]
[346996331,1735459832175,-144.55153616,0.00011747,2]
[346996332,1735459832201,-230.13846384,0.00011747,2]
[346996333,1735459832210,-90.1519488,0.00011747,2]
[346996334,1735459832222,-290.5380512,0.00011747,2]
[346996335,1735459832232,-367.7,0.00011747,2]
[346996336,1735459832241,-19299.68,0.00011753,2]
[346996337,1735459832251,-250.0,0.00011764,2]
[346996338,1735459832260,-250.0,0.00011826,2]
[346996339,1735459832269,-245.39,0.00011857,2]
[346996340,1735459832279,-370.79,0.00011923,2]
[346996341,1735459832288,-375.96,0.00011923,2]
[346996342,1735459832297,-1000.0,0.00011923,2]
[346996343,1735459832307,-450.0,0.00012,2]
[346996344,1735459832316,-538.56,0.000121,2]
[346996345,1735459832326,-378.18,0.00012347,2]
[346996346,1735459832335,-346.13,0.0001235,2]
[346996347,1735459832344,-374.46,0.00012477,2]
[346996348,1735459832354,-150.0,0.0001257,2]
[346996349,1735459832363,-3377.57910932,0.0001264,2]
[346996350,1735459832372,-371.05,0.0001266,2]
[346996351,1735459832381,-4302.35294296,0.00012664,2]
[346996352,1735459832391,-857.4031,0.00012664,2]
[346996353,1735459832400,-31606.00038888,0.00012664,2]
[346996354,1735459832412,-2576.85623992,0.00012664,2]
[346996355,1735459832433,-475.148,0.00012664,2]
[346996356,1735459832463,-311.34125143,0.00012664,2]
[346996357,1735459832474,-1152.64524711,0.00012664,2]
[346996358,1735459832485,-6809.33777266,0.00012664,2]
[346996359,1735459832494,-4737.5237,0.00012664,2]
[346996360,1735459832504,-4302.35294291,0.0001269,2]
[346996361,1735459832514,-3890.0,0.00012705,2]
[346996362,1735459832523,-150.0,0.00012705,2]
[346996363,1735459832532,-4302.35294291,0.00012716,2]
[346996364,1735459832541,-4302.35294291,0.00012743,2]
[346996365,1735459832549,-1731.4188,0.0001276,2]
[346996366,1735459832559,-166.649,0.0001276,2]
[346996367,1735459832568,-2006.81,0.00012763,2]
[346996368,1735459832580,-1419.2,0.00012763,2]
[346996369,1735459832592,-1099.43,0.00012763,2]
[346996370,1735459832601,-2156.83,0.00012763,2]
[346996371,1735459832610,-500.0,0.00012763,2]
[346996372,1735459832620,-3225.23,0.00012763,2]
[346996373,1735459832629,-3147.58,0.00012763,2]
[346996374,1735459832638,-1366.98,0.00012763,2]
[346996375,1735459832648,-1122.23,0.00012763,2]
[346996376,1735459832657,-3873.81,0.00012763,2]
[346996377,1735459832666,-1820.44,0.00012763,2]
[346996378,1735459832675,-1831.19,0.00012763,2]
[346996379,1735459832684,-3414.05,0.00012763,2]
[346996381,1735459832694,-4958.82,0.00012763,2]
[346996382,1735459832703,-1183.77,0.00012763,2]
[346996384,1735459832712,-500.0,0.00012763,2]
[346996386,1735459832721,-4038.89,0.00012763,2]
[346996389,1735459832734,-3217.22,0.00012763,2]
[346996391,1735459832744,-1360.38,0.00012763,2]
[346996393,1735459832754,-589.4,0.00012763,2]
[346996395,1735459832763,-7170.97,0.00012763,2]
[346996397,1735459832772,-1303.91,0.00012763,2]
[346996399,1735459832782,-2671.85,0.00012763,2]
[346996401,1735459832791,-1868.79,0.00012763,2]
[346996403,1735459832801,-6470.29,0.00012763,2]
[346996405,1735459832810,-6123.5,0.00012763,2]
[346996407,1735459832819,-2065.23,0.00012763,2]
[346996409,1735459832832,-1049.72,0.00012763,2]
[346996411,1735459832841,-1358.81,0.00012763,2]
[346996413,1735459832851,-4817.95,0.00012763,2]
[346996415,1735459832860,-155.053891,0.00012763,2]
[346996416,1735459832870,-1213.27,0.00012763,2]
[346996417,1735459832880,-1218.705243,0.00012763,2]
[346996419,1735459832889,-154.880726,0.00012763,2]
[346996421,1735459832898,-1025.658833,0.00012763,2]
[346996422,1735459832907,-568.75,0.00012763,2]
[346996423,1735459832917,-2620.26,0.00012763,2]
[346996424,1735459832926,-500.0,0.00012763,2]
[346996425,1735459832935,-1374.7,0.00012763,2]
[346996426,1735459832945,-1512.93,0.00012763,2]
[346996427,1735459832954,-632.48,0.00012763,2]
[346996428,1735459832963,-1268.17,0.00012763,2]
[346996429,1735459832973,-9924.99,0.00012763,2]
[346996430,1735459832983,-500.0,0.00012763,2]
[346996431,1735459832994,-1671.57,0.00012763,2]
[346996432,1735459833004,-862.98,0.00012763,2]
[346996433,1735459833014,-500.0,0.00012763,2]
[346996434,1735459833024,-500.0,0.00012763,2]
[346996435,1735459833034,-1437.18947846,0.00012764,2]
[346996436,1735459833044,-165348.56635794,0.00012764,2]
[346996437,1735459833057,-4695.67875896,0.00012764,2]
[346996438,1735459833078,-4217.56096338,0.00012764,2]
[346996439,1735459833089,-183.46108469,0.00012764,2]
[346996440,1735459833100,-316.53891531,0.00012764,2]
[346996441,1735459833110,-159.93223832,0.00012764,2]
[346996442,1735459833122,-368.20776168,0.00012764,2]
[346996443,1735459833132,-500.0,0.00012764,2]
[346996444,1735459833143,-500.0,0.00012764,2]
[346996445,1735459833153,-41.04453301,0.00012764,2]
[346996459,1735459838538,-500.0,0.00012763,2]
[346996461,1735459838548,-3016.43,0.00012763,2]
[346996463,1735459838557,-315.67182229,0.00012764,2]
[346996466,1735459838568,-143.2836447,0.00012764,2]
[346996469,1735459838577,-500.0,0.00012764,2]
[346996472,1735459838586,-500.0,0.00012764,2]
[346996475,1735459838595,-500.0,0.00012764,2]
[346996478,1735459838603,-500.0,0.00012764,2]
[346996481,1735459838612,-500.0,0.00012764,2]
[346996484,1735459838621,-675.21,0.00012764,2]
[346996487,1735459838631,-500.0,0.00012764,2]
[346996490,1735459838640,-500.0,0.00012764,2]
[346996493,1735459838649,-446.0063553,0.00012764,2]
[346996496,1735459838660,-53.9936447,0.00012764,2]
[346996499,1735459838669,-500.0,0.00012764,2]
[346996502,1735459838679,-500.0,0.00012764,2]
[346996504,1735459838687,-500.0,0.00012764,2]
[346996506,1735459838696,-500.0,0.00012764,2]
[346996508,1735459838705,-500.0,0.00012764,2]
[346996510,1735459838714,-500.0,0.00012764,2]
[346996512,1735459838723,-500.0,0.00012764,2]
[346996514,1735459838732,-500.0,0.00012764,2]
[346996516,1735459838741,-500.0,0.00012764,2]
[346996518,1735459838751,-817.33,0.00012764,2]
[346996520,1735459838760,-500.0,0.00012764,2]
[346996522,1735459838769,-500.0,0.00012764,2]
[346996524,1735459838779,-500.0,0.00012764,2]
[346996526,1735459838788,-352.74398157,0.00012764,2]
[346996528,1735459838798,-502.95442489,0.00012764,2]
[346996530,1735459838807,-500.0,0.00012764,2]
[346996532,1735459838816,-609.95,0.00012764,2]
[346996534,1735459838826,-500.0,0.00012764,2]
[346996536,1735459838837,-500.0,0.00012764,2]
[346996538,1735459838846,-500.0,0.00012764,2]
[346996540,1735459838856,-500.0,0.00012764,2]
[346996542,1735459838865,-500.0,0.00012764,2]
[346996544,1735459838874,-578.44,0.00012764,2]
[346996546,1735459838883,-500.0,0.00012764,2]
[346996548,1735459838892,-500.0,0.00012764,2]
[346996550,1735459838901,-500.0,0.00012764,2]
[346996551,1735459838910,-500.0,0.00012764,2]
[346996552,1735459838919,-500.0,0.00012764,2]
[346996553,1735459838928,-500.0,0.00012764,2]
[346996554,1735459838936,-500.0,0.00012764,2]
[346996555,1735459838945,-1299.08,0.00012764,2]
[346996556,1735459838954,-528.80985438,0.00012764,2]
[346996557,1735459838963,-500.0,0.00012764,2]
[346996558,1735459838971,-500.0,0.00012764,2]
[346996559,1735459838980,-500.0,0.00012764,2]
[346996560,1735459838990,-500.0,0.00012764,2]
[346996561,1735459839002,-500.0,0.00012764,2]
[346996563,1735459839011,-500.0,0.00012764,2]
[346996564,1735459839019,-500.0,0.00012764,2]
[346996566,1735459839028,-1003.98,0.00012764,2]
[346996567,1735459839039,-500.0,0.00012764,2]
[346996568,1735459839047,-500.0,0.00012764,2]
[346996569,1735459839057,-500.0,0.00012764,2]
[346996570,1735459839066,-500.0,0.00012764,2]
[346996571,1735459839075,-500.0,0.00012764,2]
[346996572,1735459839085,-500.0,0.00012764,2]
[346996573,1735459839094,-1029.66,0.00012764,2]
[346996574,1735459839103,-500.0,0.00012764,2]
[346996575,1735459839112,-500.0,0.00012764,2]
[346996576,1735459839121,-500.0,0.00012764,2]
[346996577,1735459839130,-500.0,0.00012764,2]
[346996578,1735459839139,-500.0,0.00012764,2]
[346996580,1735459839148,-500.0,0.00012764,2]
[346996582,1735459839157,-704.16,0.00012764,2]
[346996584,1735459839165,-500.0,0.00012764,2]
[346996586,1735459839174,-500.0,0.00012764,2]
[346996588,1735459839183,-500.0,0.00012764,2]
[346996590,1735459839191,-500.0,0.00012764,2]
[346996592,1735459839200,-263.62633288,0.00012764,2]
[346996594,1735459839209,-507.2514103,0.00012764,2]
[346996596,1735459839218,-1050.71,0.00012764,2]
[346996598,1735459839230,-536.37645136,0.00012764,2]
[346996600,1735459839242,-500.0,0.00012764,2]
[346996602,1735459839251,-547.32,0.00012764,2]
[346996604,1735459839260,-500.0,0.00012764,2]
[346996606,1735459839269,-500.0,0.00012764,2]
[346996608,1735459839278,-500.0,0.00012764,2]
[346996610,1735459839287,-500.0,0.00012764,2]
[346996612,1735459839296,-500.0,0.00012764,2]
[346996614,1735459839305,-500.0,0.00012764,2]
[346996616,1735459839314,-500.0,0.00012764,2]
[346996618,1735459839323,-500.0,0.00012764,2]
[346996620,1735459839334,-500.0,0.00012764,2]
[346996622,1735459839343,-500.0,0.00012764,2]
[346996624,1735459839354,-500.0,0.00012764,2]
[346996626,1735459839362,-500.0,0.00012764,2]
[346996628,1735459839371,-500.0,0.00012764,2]
[346996630,1735459839380,-500.0,0.00012764,2]
[346996632,1735459839390,-500.0,0.00012764,2]
[346996634,1735459839399,-500.0,0.00012764,2]
[346996637,1735459839408,-500.0,0.00012764,2]
[346996638,1735459839419,-500.0,0.00012764,2]
[346996640,1735459839428,-500.0,0.00012764,2]
[346996642,1735459839436,-500.0,0.00012764,2]
[346996645,1735459839446,-500.0,0.00012764,2]
[346996647,1735459839455,-500.0,0.00012764,2]
[346996649,1735459839465,-500.0,0.00012764,2]
[346996651,1735459839474,-500.0,0.00012764,2]
[346996653,1735459839483,-500.0,0.00012764,2]
[346996654,1735459839492,-500.0,0.00012764,2]
[346996656,1735459839501,-500.0,0.00012764,2]
[346996659,1735459839511,-500.0,0.00012764,2]
[346996661,1735459839520,-500.0,0.00012764,2]
[346996663,1735459839530,-500.0,0.00012764,2]
[346996665,1735459839539,-832.24,0.00012764,2]
[346996667,1735459839549,-500.0,0.00012764,2]
[346996669,1735459839558,-320.00000002,0.00012764,2]
[346996671,1735459839567,-500.0,0.00012764,2]
[346996673,1735459839576,-500.0,0.00012764,2]
[346996675,1735459839585,-500.0,0.00012764,2]
[346996677,1735459839595,-500.0,0.00012764,2]
[346996679,1735459839603,-500.0,0.00012764,2]
[346996681,1735459839612,-500.0,0.00012764,2]
[346996683,1735459839621,-500.0,0.00012764,2]
[346996685,1735459839631,-500.0,0.00012764,2]
[346996687,1735459839639,-500.0,0.00012764,2]
[346996689,1735459839648,-500.0,0.00012764,2]
[346996691,1735459839658,-500.0,0.00012764,2]
[346996693,1735459839667,-500.0,0.00012764,2]
[346996695,1735459839676,-500.0,0.00012764,2]
[346996697,1735459839685,-502.75777057,0.00012764,2]
[346996699,1735459839693,-500.0,0.00012764,2]
[346996701,1735459839702,-500.0,0.00012764,2]
[346996703,1735459839711,-500.0,0.00012764,2]
[346996704,1735459839720,-1046.91931459,0.00012764,2]
[346996707,1735459839737,-143.78068541,0.00012764,2]
[346996709,1735459839747,-500.0,0.00012764,2]
[346996711,1735459839756,-500.0,0.00012764,2]
[346996713,1735459839765,-500.0,0.00012764,2]
[346996715,1735459839774,-500.0,0.00012764,2]
[346996717,1735459839783,-500.0,0.00012764,2]
[346996719,1735459839792,-500.0,0.00012764,2]
[346996721,1735459839801,-500.0,0.00012764,2]
[346996723,1735459839810,-749.98,0.00012764,2]
[346996725,1735459839819,-500.0,0.00012764,2]
[346996727,1735459839829,-500.0,0.00012764,2]
[346996729,1735459839838,-500.0,0.00012764,2]
[346996731,1735459839847,-500.0,0.00012764,2]
[346996733,1735459839856,-727.42571169,0.00012764,2]
[346996736,1735459839868,-268.28055403,0.00012764,2]
[346996738,1735459839879,-122.12373428,0.00012764,2]
[346996740,1735459839888,-500.0,0.00012764,2]
[346996742,1735459839898,-417.46526665,0.00012764,2]
[346996744,1735459839908,-82.53473335,0.00012764,2]
[346996746,1735459839918,-500.0,0.00012764,2]
[346996749,1735459839927,-233.93538414,0.00012764,2]
[346996752,1735459839939,-266.06461586,0.00012764,2]
[346996755,1735459839948,-500.0,0.00012764,2]
[346996758,1735459839957,-204.15610433,0.00012764,2]
[346996764,1735459839990,-295.84389567,0.00012764,2]
[346996766,1735459840001,-500.0,0.00012764,2]
[346996768,1735459840010,-500.0,0.00012764,2]
[346996770,1735459840020,-500.0,0.00012764,2]
[346996772,1735459840029,-500.0,0.00012764,2]
[346996774,1735459840038,-500.0,0.00012764,2]
[346996776,1735459840047,-665.23,0.00012764,2]
[346996778,1735459840056,-500.0,0.00012764,2]
[346996780,1735459840068,-506.16872799,0.00012764,2]
[346996782,1735459840077,-502.09452735,0.00012764,2]
[346996784,1735459840086,-500.0,0.00012764,2]
[346996786,1735459840096,-500.0,0.00012764,2]
[346996788,1735459840105,-500.0,0.00012764,2]
[346996790,1735459840114,-500.0,0.00012764,2]
[346996792,1735459840124,-500.0,0.00012764,2]
[346996794,1735459840133,-500.0,0.00012764,2]
[346996796,1735459840142,-1108.78,0.00012764,2]
[346996798,1735459840151,-500.0,0.00012764,2]
[346996800,1735459840160,-500.0,0.00012764,2]
[346996802,1735459840169,-500.0,0.00012764,2]
[346996804,1735459840178,-500.0,0.00012764,2]
[346996806,1735459840187,-500.0,0.00012764,2]
[346996808,1735459840197,-500.0,0.00012764,2]
[346996810,1735459840206,-500.0,0.00012764,2]
[346996812,1735459840215,-500.0,0.00012764,2]
[346996815,1735459840229,-500.0,0.00012764,2]
[346996817,1735459840238,-500.0,0.00012764,2]
[346996819,1735459840247,-500.0,0.00012764,2]
[346996821,1735459840256,-500.0,0.00012764,2]
[346996823,1735459840266,-500.0,0.00012764,2]
[346996825,1735459840275,-500.0,0.00012764,2]
[346996827,1735459840284,-500.0,0.00012764,2]
[346996828,1735459840294,-500.0,0.00012764,2]
[346996830,1735459840303,-500.0,0.00012764,2]
[346996832,1735459840311,-500.0,0.00012764,2]
[346996834,1735459840320,-500.0,0.00012764,2]
[346996836,1735459840329,-500.0,0.00012764,2]
[346996838,1735459840338,-500.0,0.00012764,2]
[346996840,1735459840347,-500.0,0.00012764,2]
[346996842,1735459840356,-500.0,0.00012764,2]
[346996844,1735459840364,-500.0,0.00012764,2]
[346996846,1735459840373,-500.0,0.00012764,2]
[346996848,1735459840382,-500.0,0.00012764,2]
[346996850,1735459840391,-500.0,0.00012764,2]
[346996852,1735459840400,-500.0,0.00012764,2]
[346996854,1735459840409,-500.0,0.00012764,2]
[346996856,1735459840420,-500.0,0.00012764,2]
[346996858,1735459840430,-504.97754781,0.00012764,2]
[346996860,1735459840439,-500.0,0.00012764,2]
[346996862,1735459840449,-500.0,0.00012764,2]
[346996864,1735459840458,-504.18823325,0.00012764,2]
[346996866,1735459840467,-500.0,0.00012764,2]
[346996868,1735459840476,-500.0,0.00012764,2]
[346996870,1735459840485,-500.0,0.00012764,2]
[346996872,1735459840494,-1001.45,0.00012764,2]
[346996874,1735459840503,-500.0,0.00012764,2]
[346996876,1735459840512,-500.0,0.00012764,2]
[346996878,1735459840521,-500.0,0.00012764,2]
[346996880,1735459840531,-500.0,0.00012764,2]
[346996882,1735459840542,-500.0,0.00012764,2]
[346996885,1735459840551,-500.0,0.00012764,2]
[346996887,1735459840561,-500.0,0.00012764,2]
[346996889,1735459840570,-558.16456915,0.00012764,2]
[346996891,1735459840578,-500.0,0.00012764,2]
[346996893,1735459840588,-400.80170926,0.00012764,2]
[346996895,1735459840603,-99.19829074,0.00012764,2]
[346996897,1735459840612,-337.18303342,0.00012764,2]
[346996899,1735459840623,-162.81696658,0.00012764,2]
[346996901,1735459840631,-500.0,0.00012764,2]
[346996903,1735459840641,-606.56,0.00012764,2]
[346996905,1735459840650,-500.0,0.00012764,2]
[346996907,1735459840659,-500.0,0.00012764,2]
[346996909,1735459840668,-500.0,0.00012764,2]
[346996911,1735459840677,-500.0,0.00012764,2]
[346996913,1735459840686,-500.0,0.00012764,2]
[346996915,1735459840695,-677.77,0.00012764,2]